[Event "*** Titled Tuesday Blitz"]
[Site "Chess.com"]
[Date "2020.05.12"]
[Round "9"]
[White "Quattroporte300"]
[Black "Colombiano07"]
[Result "1-0"]
[WhiteElo "2332"]
[BlackElo "2190"]
[TimeControl "180+1"]
[EndTime "11:39:58 PDT"]
[Termination "Quattroporte300 won by resignation"]

1. e4 {[%clk 0:03:00.9]} 1... c5 {[%clk 0:02:59.7]} 2. Nf3 {[%clk 0:03:00.9]}
2... Nc6 {[%clk 0:02:59.2]} 3. d4 {[%clk 0:03:01.2]} 3... cxd4 {[%clk
0:03:00.1]} 4. Nxd4 {[%clk 0:03:01.5]} 4... Nf6 {[%clk 0:03:00.8]} 5. Nc3 {[%clk
0:03:01.4]} 5... g6 {[%clk 0:02:58.4]} 6. Nxc6 {[%clk 0:03:00.6]} 6... dxc6
{[%clk 0:02:58.5]} 7. Qxd8+ {[%clk 0:02:59.1]} 7... Kxd8 {[%clk 0:02:59.4]} 8.
Bc4 {[%clk 0:02:51.5]} 8... Ke8 {[%clk 0:02:58.9]} 9. e5 {[%clk 0:02:23.2]} 9...
Nd7 {[%clk 0:02:52.5]} 10. f4 {[%clk 0:02:23]} 10... Bg7 {[%clk 0:02:45.9]} 11.
Be3 {[%clk 0:02:22.3]} 11... Nb6 {[%clk 0:02:44.6]} 12. Be2 {[%clk 0:02:04.9]}
12... Be6 {[%clk 0:02:42.5]} 13. O-O-O {[%clk 0:02:04.9]} 13... Rd8 {[%clk
0:02:41.2]} 14. b3 {[%clk 0:01:48.9]} 14... Nd5 {[%clk 0:01:52.3]} 15. Nxd5
{[%clk 0:01:46.8]} 15... Bxd5 {[%clk 0:01:53.2]} 16. Rhg1 {[%clk 0:01:27]} 16...
b6 {[%clk 0:01:49.9]} 17. Bd4 {[%clk 0:01:19.7]} 17... Kd7 {[%clk 0:01:40.7]}
18. c4 {[%clk 0:01:18]} 1-0

[Event "*** Titled Tuesday Blitz"]
[Site "Chess.com"]
[Date "2020.05.12"]
[Round "9"]
[White "Muguet7"]
[Black "Zubrrr"]
[Result "0-1"]
[WhiteElo "2482"]
[BlackElo "2644"]
[TimeControl "180+1"]
[EndTime "11:40:10 PDT"]
[Termination "Zubrrr won by resignation"]

1. Nf3 {[%clk 0:03:00.9]} 1... f5 {[%clk 0:02:28.7]} 2. d4 {[%clk 0:03:00]} 2...
Nf6 {[%clk 0:02:28.9]} 3. c4 {[%clk 0:03:00]} 3... g6 {[%clk 0:02:29.2]} 4. Nc3
{[%clk 0:03:00.2]} 4... Bg7 {[%clk 0:02:25.5]} 5. g3 {[%clk 0:03:00.4]} 5... O-O
{[%clk 0:02:25.3]} 6. Bg2 {[%clk 0:03:00.8]} 6... d6 {[%clk 0:02:25.9]} 7. O-O
{[%clk 0:03:01.1]} 7... Qe8 {[%clk 0:02:26.3]} 8. b3 {[%clk 0:02:58.6]} 8... e5
{[%clk 0:02:25.2]} 9. dxe5 {[%clk 0:02:58.3]} 9... dxe5 {[%clk 0:02:26.1]} 10.
Ba3 {[%clk 0:02:58.2]} 10... Rf7 {[%clk 0:02:25.8]} 11. Ng5 {[%clk 0:02:33.9]}
11... Rd7 {[%clk 0:02:25.2]} 12. Qc2 {[%clk 0:02:04]} 12... Nc6 {[%clk
0:02:13.3]} 13. Bd5+ {[%clk 0:01:43.2]} 13... Nxd5 {[%clk 0:02:09.6]} 14. cxd5
{[%clk 0:01:43.4]} 14... Nd4 {[%clk 0:02:07.9]} 15. Qd2 {[%clk 0:01:39]} 15...
h6 {[%clk 0:01:55.3]} 16. Nf3 {[%clk 0:01:38]} 16... c6 {[%clk 0:01:52.5]} 17.
Bc5 {[%clk 0:01:30.9]} 17... Nxf3+ {[%clk 0:01:38.7]} 18. exf3 {[%clk
0:01:30.6]} 18... cxd5 {[%clk 0:01:33.7]} 19. Nxd5 {[%clk 0:01:30.4]} 19... b6
{[%clk 0:01:32.6]} 20. Ba3 {[%clk 0:01:26.7]} 20... Bb7 {[%clk 0:01:30.6]} 21.
Ne7+ {[%clk 0:01:22.1]} 21... Qxe7 {[%clk 0:01:29.7]} 0-1

[Event "*** Titled Tuesday Blitz"]
[Site "Chess.com"]
[Date "2020.05.12"]
[Round "9"]
[White "Sethu0025"]
[Black "Ladislav1969"]
[Result "1/2-1/2"]
[WhiteElo "2703"]
[BlackElo "2355"]
[TimeControl "180+1"]
[EndTime "11:40:13 PDT"]
[Termination "Game drawn by repetition"]

1. e4 {[%clk 0:03:00.9]} 1... c5 {[%clk 0:02:59.5]} 2. Nf3 {[%clk 0:03:00.5]}
2... e6 {[%clk 0:03:00.4]} 3. d4 {[%clk 0:03:00.5]} 3... cxd4 {[%clk 0:03:01.3]}
4. Nxd4 {[%clk 0:03:01.3]} 4... a6 {[%clk 0:03:02.2]} 5. Bd3 {[%clk 0:03:01.2]}
5... Nc6 {[%clk 0:03:00.9]} 6. Nxc6 {[%clk 0:03:00.4]} 6... dxc6 {[%clk
0:03:01.3]} 7. Qe2 {[%clk 0:02:55.5]} 7... e5 {[%clk 0:03:01.3]} 8. a4 {[%clk
0:02:55]} 8... Nf6 {[%clk 0:02:57.5]} 9. Nd2 {[%clk 0:02:53.1]} 9... Be6 {[%clk
0:02:56.7]} 10. O-O {[%clk 0:02:52.2]} 10... Bc5 {[%clk 0:02:54.2]} 11. a5
{[%clk 0:02:51.7]} 11... O-O {[%clk 0:02:53.5]} 12. Nc4 {[%clk 0:02:35.7]} 12...
Bxc4 {[%clk 0:02:49.1]} 13. Bxc4 {[%clk 0:02:35.5]} 13... h6 {[%clk 0:02:46.2]}
14. c3 {[%clk 0:02:34.6]} 14... Qe7 {[%clk 0:02:37.3]} 15. b4 {[%clk 0:02:30]}
15... Ba7 {[%clk 0:02:36.4]} 16. Be3 {[%clk 0:02:14]} 16... Bxe3 {[%clk
0:02:32.8]} 17. Qxe3 {[%clk 0:02:14.9]} 17... Rad8 {[%clk 0:02:26.3]} 18. f3
{[%clk 0:02:14.7]} 18... Rd7 {[%clk 0:02:20.9]} 19. Rfd1 {[%clk 0:02:12]} 19...
Rfd8 {[%clk 0:02:19.7]} 20. Qe2 {[%clk 0:02:09.8]} 20... Rxd1+ {[%clk
0:02:16.1]} 21. Rxd1 {[%clk 0:02:09.2]} 21... Rxd1+ {[%clk 0:02:15.5]} 22. Qxd1
{[%clk 0:02:10.1]} 22... Qd7 {[%clk 0:02:15.5]} 23. Qe2 {[%clk 0:02:10.2]} 23...
Ne8 {[%clk 0:02:08.8]} 24. Bb3 {[%clk 0:02:07.6]} 24... Nc7 {[%clk 0:02:03.6]}
25. Qc4 {[%clk 0:01:56.2]} 25... Nb5 {[%clk 0:01:58.6]} 26. h3 {[%clk
0:01:49.9]} 26... Kf8 {[%clk 0:01:55.1]} 27. Kh2 {[%clk 0:01:46]} 27... Ke7
{[%clk 0:01:54.6]} 28. Qc5+ {[%clk 0:01:42.5]} 28... Qd6 {[%clk 0:01:47.1]} 29.
Qb6 {[%clk 0:01:40.2]} 29... Qc7 {[%clk 0:01:40.8]} 30. Qc5+ {[%clk 0:01:35]}
30... Qd6 {[%clk 0:01:40.8]} 31. Qc4 {[%clk 0:01:33]} 31... Qf6 {[%clk
0:01:40.4]} 32. Qc5+ {[%clk 0:01:32.9]} 32... Qd6 {[%clk 0:01:39.8]} 1/2-1/2

[Event "*** Titled Tuesday Blitz"]
[Site "Chess.com"]
[Date "2020.05.12"]
[Round "9"]
[White "Batica1984"]
[Black "FairChess_on_YouTube"]
[Result "1-0"]
[WhiteElo "2834"]
[BlackElo "3047"]
[TimeControl "180+1"]
[EndTime "11:40:18 PDT"]
[Termination "Batica1984 won by resignation"]

1. e4 {[%clk 0:03:00.9]} 1... c6 {[%clk 0:02:58]} 2. d4 {[%clk 0:02:57.3]} 2...
d5 {[%clk 0:02:58.4]} 3. e5 {[%clk 0:02:54.7]} 3... c5 {[%clk 0:02:57.5]} 4.
dxc5 {[%clk 0:02:54.6]} 4... Nc6 {[%clk 0:02:58]} 5. f4 {[%clk 0:02:46.8]} 5...
Bf5 {[%clk 0:02:57.7]} 6. Nf3 {[%clk 0:02:38.5]} 6... e6 {[%clk 0:02:57.6]} 7.
Be3 {[%clk 0:02:35.7]} 7... Nh6 {[%clk 0:02:28.1]} 8. Nc3 {[%clk 0:02:16.5]}
8... Qa5 {[%clk 0:02:21.4]} 9. a3 {[%clk 0:02:11.4]} 9... Ng4 {[%clk 0:01:56.5]}
10. Bg1 {[%clk 0:02:10.4]} 10... Bxc5 {[%clk 0:01:28.5]} 11. b4 {[%clk
0:02:03.7]} 11... Bxg1 {[%clk 0:01:28.4]} 12. bxa5 {[%clk 0:01:46.5]} 12... Bf2+
{[%clk 0:01:28.5]} 13. Ke2 {[%clk 0:01:41.7]} 13... d4 {[%clk 0:01:25.6]} 14.
Nb5 {[%clk 0:01:32.9]} 14... O-O-O {[%clk 0:01:24]} 15. Nd6+ {[%clk 0:01:30]}
15... Rxd6 {[%clk 0:01:24]} 16. exd6 {[%clk 0:01:30.2]} 16... e5 {[%clk
0:01:19.8]} 17. h3 {[%clk 0:01:30]} 17... Ne3 {[%clk 0:01:15.3]} 18. Kxf2 {[%clk
0:01:27.5]} 18... Nxd1+ {[%clk 0:01:15]} 19. Rxd1 {[%clk 0:01:26.5]} 19... Bxc2
{[%clk 0:01:15.3]} 20. Rd2 {[%clk 0:01:25.1]} 20... d3 {[%clk 0:01:14.5]} 21.
fxe5 {[%clk 0:01:22.3]} 1-0

[Event "*** Titled Tuesday Blitz"]
[Site "Chess.com"]
[Date "2020.05.12"]
[Round "9"]
[White "doons21"]
[Black "Mikhail_Biryukov"]
[Result "0-1"]
[WhiteElo "2527"]
[BlackElo "2653"]
[TimeControl "180+1"]
[EndTime "11:40:19 PDT"]
[Termination "Mikhail_Biryukov won by resignation"]

1. e4 {[%clk 0:03:00.9]} 1... c5 {[%clk 0:03:00.2]} 2. c3 {[%clk 0:03:00.8]}
2... g6 {[%clk 0:02:56.6]} 3. d4 {[%clk 0:03:00.6]} 3... cxd4 {[%clk 0:02:57.2]}
4. cxd4 {[%clk 0:03:01.5]} 4... Bg7 {[%clk 0:02:57.6]} 5. h3 {[%clk 0:02:56.4]}
5... d6 {[%clk 0:02:57.5]} 6. Nf3 {[%clk 0:02:55.6]} 6... Nf6 {[%clk 0:02:58.1]}
7. Nc3 {[%clk 0:02:55.9]} 7... O-O {[%clk 0:02:58.1]} 8. Bc4 {[%clk 0:02:46.3]}
8... a6 {[%clk 0:02:58]} 9. a4 {[%clk 0:02:45.3]} 9... Nc6 {[%clk 0:02:55.6]}
10. O-O {[%clk 0:02:44.6]} 10... Bd7 {[%clk 0:02:54.5]} 11. Be3 {[%clk
0:02:43.7]} 11... Rc8 {[%clk 0:02:53.5]} 12. Qe1 {[%clk 0:02:43.2]} 12... Nb4
{[%clk 0:02:52.8]} 13. Qe2 {[%clk 0:02:39.7]} 13... Nc2 {[%clk 0:02:50.1]} 14.
Qxc2 {[%clk 0:02:37.1]} 14... Rxc4 {[%clk 0:02:49.9]} 15. Qb3 {[%clk 0:02:36.8]}
15... Rc7 {[%clk 0:02:30.3]} 16. e5 {[%clk 0:02:36.6]} 16... Ne8 {[%clk
0:02:29.5]} 17. Nd5 {[%clk 0:02:35]} 17... Be6 {[%clk 0:02:29.7]} 18. Rfd1
{[%clk 0:02:27.6]} 18... h6 {[%clk 0:02:16.8]} 19. Bf4 {[%clk 0:02:14.5]} 19...
Rd7 {[%clk 0:02:10.5]} 20. exd6 {[%clk 0:02:08.2]} 20... Nxd6 {[%clk 0:01:54.2]}
21. Ne5 {[%clk 0:02:04.9]} 21... Bxe5 {[%clk 0:01:53.7]} 22. dxe5 {[%clk
0:01:52.1]} 22... Nf5 {[%clk 0:01:53.3]} 23. g4 {[%clk 0:01:51.8]} 23... Bxd5
{[%clk 0:01:53.3]} 24. Qc3 {[%clk 0:01:49.4]} 24... Nh4 {[%clk 0:01:38.4]} 25.
Bxh6 {[%clk 0:01:48.5]} 25... Nf3+ {[%clk 0:01:38.4]} 26. Kf1 {[%clk 0:01:48.9]}
26... Bc4+ {[%clk 0:01:33.5]} 27. Kg2 {[%clk 0:01:46.8]} 27... Rxd1 {[%clk
0:01:32.3]} 28. e6 {[%clk 0:01:46.6]} 28... Nh4+ {[%clk 0:01:19.2]} 29. Kg3
{[%clk 0:01:44.4]} 29... Rd3+ {[%clk 0:01:18.6]} 0-1

[Event "*** Titled Tuesday Blitz"]
[Site "Chess.com"]
[Date "2020.05.12"]
[Round "9"]
[White "m-garcett"]
[Black "DonBroca"]
[Result "0-1"]
[WhiteElo "1966"]
[BlackElo "2191"]
[TimeControl "180+1"]
[EndTime "11:40:22 PDT"]
[Termination "DonBroca won by resignation"]

1. e4 {[%clk 0:03:00.9]} 1... c5 {[%clk 0:03:00.3]} 2. Nf3 {[%clk 0:03:00.3]}
2... d6 {[%clk 0:03:00.7]} 3. Nd4 {[%clk 0:03:00.5]} 3... cxd4 {[%clk
0:03:01.6]} 4. Bc4 {[%clk 0:02:54.7]} 4... Nf6 {[%clk 0:02:59.8]} 5. d3 {[%clk
0:02:54.8]} 5... Nc6 {[%clk 0:02:59.1]} 6. O-O {[%clk 0:02:54.5]} 6... e6 {[%clk
0:02:54.4]} 7. c3 {[%clk 0:02:53.1]} 7... Be7 {[%clk 0:02:52]} 8. cxd4 {[%clk
0:02:52.4]} 8... Nxd4 {[%clk 0:02:51.2]} 9. Nc3 {[%clk 0:02:52.7]} 9... a6
{[%clk 0:02:48.2]} 10. Kh1 {[%clk 0:02:49.7]} 10... b5 {[%clk 0:02:48.6]} 11.
Bb3 {[%clk 0:02:48.1]} 11... Nxb3 {[%clk 0:02:48.5]} 12. axb3 {[%clk 0:02:47.7]}
12... Bb7 {[%clk 0:02:48.4]} 13. f4 {[%clk 0:02:46.4]} 13... Rc8 {[%clk
0:02:37.1]} 14. f5 {[%clk 0:02:45.3]} 14... exf5 {[%clk 0:02:36.8]} 15. Rxf5
{[%clk 0:02:42.3]} 15... Qd7 {[%clk 0:02:34.4]} 16. Qf3 {[%clk 0:02:36.5]} 16...
Qe6 {[%clk 0:02:22.2]} 17. Qg3 {[%clk 0:02:34.9]} 17... g6 {[%clk 0:02:18.8]}
18. Rf1 {[%clk 0:02:32.2]} 18... Nh5 {[%clk 0:02:14.5]} 19. Qf3 {[%clk
0:02:30.2]} 19... f5 {[%clk 0:02:12.6]} 20. Bh6 {[%clk 0:02:26.3]} 20... Bf8
{[%clk 0:02:05.6]} 21. Bg5 {[%clk 0:02:24.6]} 21... Bg7 {[%clk 0:02:01.6]} 22.
Nd5 {[%clk 0:02:20.6]} 22... h6 {[%clk 0:01:40.7]} 23. exf5 {[%clk 0:02:10.3]}
23... Qxd5 {[%clk 0:01:38.6]} 24. Rae1+ {[%clk 0:02:10.1]} 24... Be5 {[%clk
0:01:37.3]} 25. Re4 {[%clk 0:01:35.4]} 25... hxg5 {[%clk 0:01:21.5]} 26. fxg6
{[%clk 0:01:34.6]} 26... Nf4 {[%clk 0:01:19.5]} 27. d4 {[%clk 0:01:29.3]} 27...
Qxe4 {[%clk 0:01:17.9]} 0-1

[Event "*** Titled Tuesday Blitz"]
[Site "Chess.com"]
[Date "2020.05.12"]
[Round "9"]
[White "jerry_77"]
[Black "Denis_Palkovich"]
[Result "1-0"]
[WhiteElo "2460"]
[BlackElo "2299"]
[TimeControl "180+1"]
[EndTime "11:40:29 PDT"]
[Termination "jerry_77 won by resignation"]

1. e4 {[%clk 0:03:00.9]} 1... d5 {[%clk 0:02:59.9]} 2. exd5 {[%clk 0:03:00.9]}
2... Nf6 {[%clk 0:03:00.2]} 3. Nc3 {[%clk 0:03:01.8]} 3... Nxd5 {[%clk
0:03:00.3]} 4. Be2 {[%clk 0:03:00.9]} 4... Nxc3 {[%clk 0:02:59.1]} 5. dxc3
{[%clk 0:03:01.8]} 5... Qxd1+ {[%clk 0:02:58.6]} 6. Bxd1 {[%clk 0:03:02.7]} 6...
Nc6 {[%clk 0:02:58.4]} 7. Bf4 {[%clk 0:03:02.1]} 7... e5 {[%clk 0:02:57.4]} 8.
Be3 {[%clk 0:03:02.1]} 8... Bf5 {[%clk 0:02:57.7]} 9. Ne2 {[%clk 0:03:00.7]}
9... O-O-O {[%clk 0:02:55.6]} 10. Ng3 {[%clk 0:03:00.3]} 10... Bg6 {[%clk
0:02:54.7]} 11. Bd2 {[%clk 0:03:00.3]} 11... f5 {[%clk 0:02:47]} 12. Bh5 {[%clk
0:02:54]} 12... Bxh5 {[%clk 0:02:41.7]} 13. Nxh5 {[%clk 0:02:54.9]} 13... f4
{[%clk 0:02:26.7]} 14. g3 {[%clk 0:02:53.1]} 14... g6 {[%clk 0:01:46.9]} 15. Nf6
{[%clk 0:02:52.3]} 15... Bg7 {[%clk 0:01:37]} 16. Ne4 {[%clk 0:02:52.3]} 16...
Rhf8 {[%clk 0:01:24.3]} 17. O-O-O {[%clk 0:02:49.9]} 17... h6 {[%clk 0:01:23.4]}
18. Rhg1 {[%clk 0:02:43.4]} 18... g5 {[%clk 0:01:22.8]} 19. h4 {[%clk
0:02:42.5]} 19... Ne7 {[%clk 0:01:18]} 20. hxg5 {[%clk 0:02:39.4]} 20... hxg5
{[%clk 0:01:18.9]} 21. Nxg5 {[%clk 0:02:39.5]} 21... Rd6 {[%clk 0:01:07.3]} 22.
Ne4 {[%clk 0:02:37]} 22... Rg6 {[%clk 0:00:32.5]} 23. gxf4 {[%clk 0:02:35.2]}
23... exf4 {[%clk 0:00:32]} 24. Rxg6 {[%clk 0:02:34.9]} 24... Nxg6 {[%clk
0:00:32.1]} 25. Rg1 {[%clk 0:02:35.8]} 25... Re8 {[%clk 0:00:19.7]} 26. Rxg6
{[%clk 0:02:29.4]} 26... Rxe4 {[%clk 0:00:14.7]} 27. Rxg7 {[%clk 0:02:29.3]}
27... f3 {[%clk 0:00:15.6]} 28. Rf7 {[%clk 0:02:28.2]} 1-0

[Event "*** Titled Tuesday Blitz"]
[Site "Chess.com"]
[Date "2020.05.12"]
[Round "9"]
[White "Oligan22"]
[Black "nabukatnezarr"]
[Result "1-0"]
[WhiteElo "2398"]
[BlackElo "2500"]
[TimeControl "180+1"]
[EndTime "11:40:32 PDT"]
[Termination "Oligan22 won by resignation"]

1. e4 {[%clk 0:03:00.9]} 1... c5 {[%clk 0:03:00.9]} 2. Nf3 {[%clk 0:03:00.4]}
2... d6 {[%clk 0:03:00.3]} 3. d4 {[%clk 0:03:00.9]} 3... cxd4 {[%clk 0:03:01.2]}
4. Nxd4 {[%clk 0:03:01.5]} 4... Nf6 {[%clk 0:03:01.9]} 5. Nc3 {[%clk 0:03:02.2]}
5... Nc6 {[%clk 0:03:02.8]} 6. f4 {[%clk 0:03:01.6]} 6... e5 {[%clk 0:03:02.3]}
7. Nf3 {[%clk 0:03:01.5]} 7... Be7 {[%clk 0:03:00.7]} 8. Bd3 {[%clk 0:03:02]}
8... O-O {[%clk 0:02:59.8]} 9. O-O {[%clk 0:03:02.5]} 9... a6 {[%clk 0:02:56.8]}
10. Kh1 {[%clk 0:03:02.3]} 10... b5 {[%clk 0:02:56.8]} 11. a3 {[%clk 0:03:02.9]}
11... Bb7 {[%clk 0:02:55.7]} 12. Qe1 {[%clk 0:03:03.5]} 12... Rc8 {[%clk
0:02:48.7]} 13. Nh4 {[%clk 0:03:03.3]} 13... Re8 {[%clk 0:02:45.3]} 14. Nf5
{[%clk 0:02:57.3]} 14... Bf8 {[%clk 0:02:45.4]} 15. Qh4 {[%clk 0:02:50.4]} 15...
Nd4 {[%clk 0:02:33.9]} 16. fxe5 {[%clk 0:02:43.3]} 16... Nxf5 {[%clk 0:02:32.8]}
17. Rxf5 {[%clk 0:02:43.1]} 17... dxe5 {[%clk 0:02:21.3]} 18. Bg5 {[%clk
0:02:41.2]} 18... Be7 {[%clk 0:02:19.1]} 19. Raf1 {[%clk 0:02:40.1]} 19... Rxc3
{[%clk 0:02:14.6]} 20. bxc3 {[%clk 0:02:38.2]} 20... Qd6 {[%clk 0:02:06]} 21.
Qg3 {[%clk 0:02:26]} 21... Kf8 {[%clk 0:02:02.3]} 22. Rxe5 {[%clk 0:01:42.4]}
22... Qxa3 {[%clk 0:01:53.5]} 23. Bxf6 {[%clk 0:01:39]} 23... gxf6 {[%clk
0:01:48.6]} 24. Rh5 {[%clk 0:01:35.5]} 24... Bd6 {[%clk 0:01:48.3]} 25. Qh4
{[%clk 0:01:34.6]} 25... Be5 {[%clk 0:01:47.3]} 26. c4 {[%clk 0:01:12.5]} 26...
b4 {[%clk 0:01:45.2]} 27. Rxh7 {[%clk 0:01:08.6]} 27... Qc3 {[%clk 0:01:44.9]}
28. Qh5 {[%clk 0:01:05.5]} 1-0

[Event "*** Titled Tuesday Blitz"]
[Site "Chess.com"]
[Date "2020.05.12"]
[Round "9"]
[White "Batsai"]
[Black "canary2016"]
[Result "1-0"]
[WhiteElo "2272"]
[BlackElo "1958"]
[TimeControl "180+1"]
[EndTime "11:40:39 PDT"]
[Termination "Batsai won by checkmate"]

1. e4 {[%clk 0:03:00.9]} 1... c6 {[%clk 0:02:59.9]} 2. d4 {[%clk 0:03:00.6]}
2... d5 {[%clk 0:03:00]} 3. e5 {[%clk 0:03:00.9]} 3... Bf5 {[%clk 0:02:59.1]} 4.
h4 {[%clk 0:03:01.1]} 4... h5 {[%clk 0:02:58.5]} 5. Bd3 {[%clk 0:03:00.2]} 5...
Bxd3 {[%clk 0:02:57.8]} 6. Qxd3 {[%clk 0:03:01.1]} 6... e6 {[%clk 0:02:58.1]} 7.
Bg5 {[%clk 0:03:01.3]} 7... Ne7 {[%clk 0:02:52.6]} 8. Nf3 {[%clk 0:02:56.9]}
8... Nd7 {[%clk 0:02:52.4]} 9. c4 {[%clk 0:02:51.9]} 9... Qc7 {[%clk 0:02:51.6]}
10. Nc3 {[%clk 0:02:50.8]} 10... Nf5 {[%clk 0:02:46.3]} 11. Rc1 {[%clk
0:02:23.1]} 11... Be7 {[%clk 0:02:40.9]} 12. cxd5 {[%clk 0:02:09.9]} 12... Bxg5
{[%clk 0:02:37.7]} 13. d6 {[%clk 0:02:05.9]} 13... Qb6 {[%clk 0:02:22.9]} 14.
hxg5 {[%clk 0:02:05.8]} 14... Qxb2 {[%clk 0:02:20.4]} 15. O-O {[%clk 0:01:54.2]}
15... Qa3 {[%clk 0:02:19]} 16. Rb1 {[%clk 0:01:50.4]} 16... b6 {[%clk
0:02:17.9]} 17. Qc4 {[%clk 0:01:44.8]} 17... b5 {[%clk 0:02:08.3]} 18. Qxc6
{[%clk 0:01:42.5]} 18... Rd8 {[%clk 0:02:02.7]} 19. Nxb5 {[%clk 0:01:41.8]}
19... O-O {[%clk 0:02:02]} 20. Nxa3 {[%clk 0:01:41.6]} 20... Nb8 {[%clk
0:01:57.6]} 21. Qe4 {[%clk 0:01:34.8]} 21... Rc8 {[%clk 0:01:55.7]} 22. Rfc1
{[%clk 0:01:34.5]} 22... Rcd8 {[%clk 0:01:51.5]} 23. Rc7 {[%clk 0:01:29.3]}
23... Na6 {[%clk 0:01:49.9]} 24. Rxa7 {[%clk 0:01:28]} 24... Nb8 {[%clk
0:01:47.1]} 25. Rbb7 {[%clk 0:01:26.9]} 25... Rc8 {[%clk 0:01:44.5]} 26. g6
{[%clk 0:01:25.2]} 26... Rc1+ {[%clk 0:01:42.9]} 27. Kh2 {[%clk 0:01:25.4]}
27... Nh6 {[%clk 0:01:40.4]} 28. gxf7+ {[%clk 0:01:21.3]} 28... Kh8 {[%clk
0:01:39.9]} 29. Ng5 {[%clk 0:01:19.5]} 29... Ng4+ {[%clk 0:01:39.3]} 30. Kg3
{[%clk 0:01:18.4]} 30... Rc3+ {[%clk 0:01:32.3]} 31. f3 {[%clk 0:01:18]} 31...
Nh6 {[%clk 0:01:22.6]} 32. Qh7# {[%clk 0:01:16.4]} 1-0

[Event "*** Titled Tuesday Blitz"]
[Site "Chess.com"]
[Date "2020.05.12"]
[Round "9"]
[White "PawnEatingZombie"]
[Black "Charlottemillard17"]
[Result "1-0"]
[WhiteElo "2166"]
[BlackElo "1418"]
[TimeControl "180+1"]
[EndTime "11:40:40 PDT"]
[Termination "PawnEatingZombie won by checkmate"]

1. d4 {[%clk 0:03:00.9]} 1... d5 {[%clk 0:02:35.5]} 2. c4 {[%clk 0:02:59]} 2...
e6 {[%clk 0:02:33.1]} 3. Nc3 {[%clk 0:02:58.7]} 3... c6 {[%clk 0:02:32.9]} 4. e3
{[%clk 0:02:57.7]} 4... Nf6 {[%clk 0:02:33.1]} 5. Nf3 {[%clk 0:02:56.9]} 5...
Be7 {[%clk 0:02:33.4]} 6. Bd3 {[%clk 0:02:55.6]} 6... O-O {[%clk 0:02:33.2]} 7.
O-O {[%clk 0:02:55.4]} 7... Nbd7 {[%clk 0:02:29.5]} 8. e4 {[%clk 0:02:51.3]}
8... dxc4 {[%clk 0:02:29.4]} 9. Bxc4 {[%clk 0:02:49.4]} 9... b5 {[%clk
0:02:29.8]} 10. Bd3 {[%clk 0:02:48.3]} 10... Bb7 {[%clk 0:02:30.1]} 11. e5
{[%clk 0:02:47.2]} 11... Nd5 {[%clk 0:02:29.1]} 12. Nxd5 {[%clk 0:02:47]} 12...
exd5 {[%clk 0:02:25.4]} 13. Re1 {[%clk 0:02:16.8]} 13... Nb6 {[%clk 0:02:18]}
14. Bc2 {[%clk 0:02:02.1]} 14... Bb4 {[%clk 0:02:15.3]} 15. Qd3 {[%clk
0:01:51.5]} 15... g6 {[%clk 0:02:05.3]} 16. Rd1 {[%clk 0:01:41.4]} 16... Re8
{[%clk 0:01:53.1]} 17. a3 {[%clk 0:01:28.4]} 17... Bf8 {[%clk 0:01:51.3]} 18.
Bg5 {[%clk 0:01:23.8]} 18... Qd7 {[%clk 0:01:43.5]} 19. h4 {[%clk 0:01:22.5]}
19... Bg7 {[%clk 0:01:41.1]} 20. h5 {[%clk 0:01:20.1]} 20... gxh5 {[%clk
0:01:39.5]} 21. Qxh7+ {[%clk 0:01:18.7]} 21... Kf8 {[%clk 0:01:39.9]} 22. Bf6
{[%clk 0:01:12]} 22... Bxf6 {[%clk 0:01:26.2]} 23. exf6 {[%clk 0:01:10.4]} 23...
Qg4 {[%clk 0:01:24.2]} 24. Qh8+ {[%clk 0:01:09.8]} 24... Qg8 {[%clk 0:01:23.2]}
25. Qh6+ {[%clk 0:01:10.2]} 25... Qg7 {[%clk 0:01:23.3]} 26. Qxg7# {[%clk
0:01:10.2]} 1-0

[Event "*** Titled Tuesday Blitz"]
[Site "Chess.com"]
[Date "2020.05.12"]
[Round "9"]
[White "Sychev_Klementy"]
[Black "AnishGiri"]
[Result "1-0"]
[WhiteElo "2879"]
[BlackElo "3021"]
[TimeControl "180+1"]
[EndTime "11:40:41 PDT"]
[Termination "Sychev_Klementy won by resignation"]

1. e4 {[%clk 0:03:00.9]} 1... c5 {[%clk 0:01:41.1]} 2. Nf3 {[%clk 0:02:59.7]}
2... d6 {[%clk 0:01:41.3]} 3. d4 {[%clk 0:02:59.9]} 3... cxd4 {[%clk 0:01:42.2]}
4. Nxd4 {[%clk 0:03:00.1]} 4... Nf6 {[%clk 0:01:42.9]} 5. Nc3 {[%clk 0:03:00]}
5... a6 {[%clk 0:01:43.4]} 6. Bg5 {[%clk 0:02:57.6]} 6... e6 {[%clk 0:01:43.8]}
7. f4 {[%clk 0:02:57.1]} 7... h6 {[%clk 0:01:43.9]} 8. Bh4 {[%clk 0:02:57]} 8...
Qb6 {[%clk 0:01:44.5]} 9. Qd2 {[%clk 0:02:57.3]} 9... Qxb2 {[%clk 0:01:43.9]}
10. Rb1 {[%clk 0:02:57.5]} 10... Qa3 {[%clk 0:01:44.5]} 11. Be2 {[%clk
0:02:57.9]} 11... Be7 {[%clk 0:01:43.3]} 12. O-O {[%clk 0:02:57]} 12... Nbd7
{[%clk 0:01:42.9]} 13. f5 {[%clk 0:02:57.2]} 13... e5 {[%clk 0:01:41.2]} 14. Ne6
{[%clk 0:02:57.4]} 14... fxe6 {[%clk 0:01:36]} 15. fxe6 {[%clk 0:02:58.3]} 15...
Nf8 {[%clk 0:01:36.2]} 16. Rxf6 {[%clk 0:01:57.2]} 16... gxf6 {[%clk 0:01:17.1]}
17. Bh5+ {[%clk 0:01:53.1]} 17... Kd8 {[%clk 0:01:16.9]} 18. Rb3 {[%clk
0:01:53]} 18... Qa5 {[%clk 0:01:10.6]} 19. Bf2 {[%clk 0:01:36]} 19... d5 {[%clk
0:00:54.2]} 20. Nxd5 {[%clk 0:01:21.1]} 1-0